bitfinex/quotes_BTCUSD_20251104
["timestamp","ask_amount","ask_price","bid_price","bid_amount"]
[1762239365132,3.0,104840.0,104830.0,0.0758657]
[1762239365340,0.19076688,104840.0,104830.0,0.0758657]
[1762239365959,4.07861878,104850.0,104840.0,0.002]
[1762239366358,0.19076688,104840.0,104830.0,0.0525557]
[1762239366568,0.19076688,104840.0,104830.0,0.0555557]
[1762239366765,0.19076688,104840.0,104830.0,0.0798657]
[1762239367145,0.33287379,104850.0,104830.0,0.0798657]
[1762239367541,3.0,104840.0,104830.0,0.0798657]
[1762239367733,3.19076688,104840.0,104830.0,0.0828657]
[1762239367915,0.19076688,104840.0,104830.0,0.0828657]
[1762239368168,0.19076688,104840.0,104830.0,0.0758657]
[1762239368375,0.19076688,104840.0,104830.0,0.0788657]
[1762239368577,0.19076688,104840.0,104830.0,0.0031457]
[1762239368578,0.26546688,104840.0,104830.0,0.0031457]
[1762239368751,3.26546688,104840.0,104830.0,0.0031457]
[1762239368900,3.26546688,104840.0,104830.0,0.0001457]
[1762239369105,3.60546688,104840.0,104830.0,0.0001457]
[1762239369307,3.60546688,104840.0,104830.0,0.0071457]
[1762239369706,3.60546688,104840.0,104830.0,0.0001457]
[1762239369916,3.60546688,104840.0,104830.0,0.0021457]
[1762239371140,3.60546688,104840.0,104830.0,0.0051457]
[1762239371759,0.34,104840.0,104830.0,0.0795457]
[1762239372148,0.53076688,104840.0,104830.0,0.0795457]
[1762239372434,2.92303923,104840.0,104830.0,0.0795457]
[1762239372953,2.96379923,104840.0,104830.0,0.0211657]
[1762239373154,0.04076,104840.0,104830.0,0.0211657]
[1762239373717,2.92303923,104840.0,104830.0,0.0795457]
[1762239374768,2.92303923,104840.0,104830.0,0.27033078]
[1762239375020,0.01229818,104860.0,104830.0,0.27033078]
[1762239375367,2.92303923,104860.0,104850.0,0.0213]
[1762239375712,0.22480511,104860.0,104840.0,0.04907]
[1762239375917,2.88878479,104850.0,104840.0,0.04907]
[1762239376155,2.88878479,104850.0,104840.0,0.07037]
[1762239377872,3.07953347,104850.0,104840.0,0.07037]
[1762239378037,0.19074868,104850.0,104840.0,0.07137]
[1762239378410,2.88878479,104850.0,104840.0,0.07137]
[1762239378613,2.88878479,104850.0,104840.0,0.07237]
[1762239378920,0.19074868,104850.0,104840.0,0.07237]
[1762239379651,0.30883608,104860.0,104840.0,0.07237]
[1762239379854,2.88878479,104850.0,104840.0,0.07237]
[1762239380643,2.88878479,104850.0,104840.0,0.07137]
[1762239381893,2.88878479,104850.0,104840.0,0.07337]
[1762239383212,2.88878479,104850.0,104840.0,0.003]
[1762239383213,4.58096625,104850.0,104840.0,0.003]
[1762239383426,4.58937199,104850.0,104840.0,0.003]
[1762239383636,4.61805938,104850.0,104840.0,0.003]
[1762239383842,4.61805938,104850.0,104830.0,0.0001457]
[1762239384054,4.67917871,104840.0,104830.0,0.0001457]
[1762239384268,4.77375477,104840.0,104830.0,0.0001457]
[1762239385504,4.77575477,104840.0,104830.0,0.0001457]
[1762239385949,4.81193705,104840.0,104830.0,0.0001457]
[1762239386161,4.80979402,104840.0,104830.0,0.0001457]
[1762239386683,4.83948264,104840.0,104830.0,0.0001457]
[1762239386992,4.85445695,104840.0,104830.0,0.0001457]
[1762239387199,4.83948264,104840.0,104830.0,0.0001457]
[1762239389352,4.74490658,104840.0,104830.0,0.0001457]
[1762239390186,4.75988104,104840.0,104830.0,0.0001457]
[1762239390393,4.77484786,104840.0,104830.0,0.0001457]
[1762239390808,3.70474189,104840.0,104830.0,0.0388557]
[1762239391016,3.68310189,104840.0,104830.0,0.0388557]
[1762239391230,3.66194645,104840.0,104830.0,0.0388557]
[1762239391451,3.69428645,104840.0,104830.0,0.0160957]
[1762239391654,3.35428645,104840.0,104830.0,0.0160957]
[1762239391851,3.35528645,104840.0,104830.0,0.0001457]
[1762239392053,4.35841317,104840.0,104830.0,0.0001457]
[1762239392217,4.39338948,104840.0,104830.0,0.0001457]
[1762239392668,4.39138948,104840.0,104830.0,0.0001457]
[1762239393198,4.39138948,104840.0,104830.0,0.0011457]
[1762239393199,4.39038948,104840.0,104830.0,0.0011457]
[1762239393555,4.39038948,104840.0,104830.0,0.0021457]
[1762239393758,4.38409751,104840.0,104830.0,0.0021457]
[1762239394012,4.72409751,104840.0,104830.0,0.0021457]
[1762239395253,4.74013751,104840.0,104830.0,0.0021457]
[1762239401680,4.70679751,104840.0,104830.0,0.0184657]
[1762239402336,4.74013751,104840.0,104830.0,0.0684657]
[1762239402551,4.70679751,104840.0,104830.0,0.0684657]
[1762239402983,4.74013751,104840.0,104830.0,0.0684657]
[1762239403183,4.74013751,104840.0,104830.0,0.0521457]
[1762239405064,4.83471357,104840.0,104830.0,0.0521457]
[1762239405686,4.74013751,104840.0,104830.0,0.0521457]
[1762239406428,4.37888614,104840.0,104830.0,0.0521457]
[1762239406647,4.37888614,104840.0,104830.0,0.1248057]
[1762239406648,0.02868434,104840.0,104830.0,0.1248057]
[1762239407023,0.26162239,104860.0,104830.0,0.1248057]
[1762239407024,0.01243462,104860.0,104830.0,0.34420662]
[1762239407230,0.01243462,104860.0,104850.0,0.03133]
[1762239407427,2.93089356,104860.0,104850.0,0.03133]
[1762239407629,0.01276613,104860.0,104850.0,0.03133]
[1762239407839,0.01276613,104860.0,104850.0,0.06581]
[1762239408047,3.0,104860.0,104850.0,0.06581]
[1762239408678,3.0,104870.0,104850.0,0.06581]
[1762239408894,0.01280489,104860.0,104850.0,0.03133]
[1762239409106,3.34,104870.0,104860.0,0.05673]
[1762239409313,0.34,104870.0,104860.0,0.05673]
[1762239409534,3.0,104870.0,104860.0,0.24746049]
[1762239409748,3.0,104870.0,104860.0,0.05673]
[1762239410375,3.0,104870.0,104860.0,0.05973]
[1762239413493,0.02786338,104880.0,104860.0,0.05973]
[1762239413692,0.30926261,104880.0,104870.0,0.02225]
[1762239413934,0.30926261,104880.0,104870.0,0.05673]
[1762239414266,0.29429229,104880.0,104870.0,0.05673]
[1762239414823,0.29434088,104880.0,104870.0,0.05673]
[1762239415022,0.10364676,104880.0,104870.0,0.05673]
[1762239415187,0.29434088,104880.0,104870.0,0.07266]
[1762239416354,0.29434088,104880.0,104850.0,0.04356]
[1762239416355,3.19071231,104870.0,104850.0,0.04356]
[1762239416564,1.29995606,104860.0,104850.0,0.00908]
[1762239416754,3.19074868,104850.0,104840.0,0.00908]
[1762239417013,1.20267914,104850.0,104840.0,0.04356]
[1762239417218,1.33381606,104860.0,104840.0,0.06581]
[1762239417423,3.19074868,104850.0,104840.0,0.06581]
[1762239417626,0.19074868,104850.0,104840.0,0.06581]
[1762239418005,0.19074868,104850.0,104840.0,0.06781]
[1762239418599,3.19074868,104850.0,104840.0,0.03333]
[1762239418805,3.19074868,104850.0,104840.0,0.06781]
[1762239419207,3.19074868,104850.0,104840.0,0.06881]
[1762239419827,3.0,104850.0,104840.0,0.06881]
[1762239420060,1.29995606,104860.0,104840.0,0.06881]
[1762239420389,1.29995606,104860.0,104840.0,0.04656]
[1762239420390,3.0,104850.0,104840.0,0.04656]
[1762239420819,3.0,104850.0,104840.0,0.06881]
[1762239420933,3.0,104850.0,104840.0,0.06681]
[1762239421398,3.0,104850.0,104840.0,0.06581]
[1762239421748,0.19074868,104850.0,104840.0,0.06581]
[1762239422535,2.61473873,104850.0,104840.0,0.06681]
[1762239422889,2.61473873,104850.0,104840.0,0.06881]
[1762239423480,0.19074868,104850.0,104840.0,0.06881]
[1762239424238,1.32286425,104850.0,104840.0,0.01208]
[1762239424511,1.32286425,104850.0,104840.0,0.003]
[1762239424512,1.35672425,104850.0,104840.0,0.003]
[1762239424640,1.32286425,104850.0,104840.0,0.003]
[1762239425086,1.32286425,104850.0,104840.0,0.02525]
[1762239425642,1.32198725,104850.0,104840.0,0.02525]
[1762239426251,3.93672598,104850.0,104840.0,0.02525]
[1762239427114,3.97058598,104850.0,104840.0,0.003]
[1762239427308,4.41323867,104850.0,104840.0,0.003]
[1762239427912,4.33363527,104850.0,104840.0,0.003]
[1762239428262,4.31866261,104850.0,104840.0,0.003]
[1762239428468,4.06238477,104850.0,104840.0,0.003]
[1762239428675,4.05430814,104850.0,104840.0,0.003]
[1762239430576,4.06928036,104850.0,104840.0,0.003]
[1762239432460,4.03542036,104850.0,104840.0,0.003]
[1762239432860,4.06928036,104850.0,104840.0,0.003]
[1762239433257,4.16385642,104850.0,104840.0,0.003]
[1762239434251,4.06928036,104850.0,104840.0,0.003]
[1762239434944,4.07005036,104850.0,104840.0,0.003]
[1762239438121,4.08501392,104850.0,104840.0,0.003]
[1762239438324,3.99523386,104850.0,104840.0,0.003]
[1762239438479,3.96060386,104850.0,104840.0,0.003]
[1762239438703,3.99523386,104850.0,104840.0,0.003]
[1762239442836,4.74642248,104850.0,104840.0,0.003]
[1762239443022,4.75454183,104850.0,104840.0,0.003]
[1762239443890,4.73956961,104850.0,104840.0,0.003]
[1762239444030,4.73956961,104850.0,104840.0,0.002]
[1762239444630,3.19076688,104840.0,104830.0,0.05]
[1762239444899,4.574582,104840.0,104830.0,0.05]
[1762239445762,4.59309173,104840.0,104830.0,0.0521457]
[1762239446533,4.6012289,104840.0,104830.0,0.0521457]
[1762239446835,4.58271917,104840.0,104830.0,0.0521457]
[1762239447076,4.58271917,104840.0,104830.0,0.0531457]
[1762239447487,4.59769308,104840.0,104830.0,0.0531457]
[1762239447696,4.58271917,104840.0,104830.0,0.0531457]
[1762239448913,4.58271917,104840.0,104830.0,0.0511457]
[1762239448914,5.27551401,104840.0,104830.0,0.0511457]
[1762239449154,5.27551401,104840.0,104790.0,0.0170781]
[1762239449155,0.19083969,104800.0,104790.0,0.0170781]
[1762239449354,0.93815736,104800.0,104790.0,0.04938395]
[1762239449536,0.93815736,104800.0,104790.0,0.07047395]
[1762239450269,0.74731767,104800.0,104790.0,0.07047395]
[1762239450419,0.01378389,104800.0,104790.0,0.07047395]
[1762239450616,0.95010852,104810.0,104790.0,0.07347395]
[1762239450861,3.75986642,104810.0,104800.0,0.01302]
[1762239451079,1.08153024,104820.0,104800.0,0.06593]
[1762239451277,3.00057938,104810.0,104800.0,0.06593]
[1762239451450,0.19082148,104810.0,104800.0,0.06593]
[1762239451653,0.9375328,104810.0,104800.0,0.03411]
[1762239451874,0.9500928,104810.0,104800.0,0.03411]
[1762239452112,0.9500928,104810.0,104800.0,0.03611]
[1762239453565,0.9635492,104810.0,104800.0,0.03611]
[1762239454155,0.9635492,104810.0,104800.0,0.03711]
[1762239454789,0.77272772,104810.0,104800.0,0.06893]
[1762239455560,0.7403615,104810.0,104800.0,0.06893]
[1762239455762,3.7616815,104810.0,104800.0,0.03711]
[1762239455974,3.7616815,104810.0,104800.0,0.01602]
[1762239456623,4.23558236,104810.0,104800.0,0.003]
[1762239457410,3.19083969,104800.0,104790.0,0.00072395]
[1762239457717,3.96324974,104800.0,104790.0,0.00072395]
[1762239457887,3.98138581,104800.0,104790.0,0.00072395]
[1762239458293,3.97324101,104800.0,104790.0,0.00072395]
[1762239458719,3.97324101,104800.0,104790.0,0.00272395]
[1762239458926,4.03206803,104800.0,104790.0,0.00272395]
[1762239459456,3.97324101,104800.0,104790.0,0.00272395]
[1762239459670,3.97324101,104800.0,104790.0,0.00372395]
[1762239460220,4.00442101,104800.0,104790.0,0.00372395]
[1762239460434,4.02754427,104800.0,104790.0,0.00372395]
[1762239460626,4.01256642,104800.0,104790.0,0.00372395]
[1762239460845,4.38444796,104800.0,104790.0,0.00372395]
[1762239461216,0.01627,104870.0,104800.0,0.00999999]
[1762239461427,0.01627,104890.0,104840.0,0.34953834]
[1762239461622,0.01496398,104880.0,104860.0,0.576207]
[1762239461839,2.42913414,104880.0,104860.0,0.06142476]
[1762239462052,2.42913414,104880.0,104850.0,0.10756278]
[1762239462426,0.77789132,104880.0,104850.0,0.20028565]
[1762239462626,0.77798404,104880.0,104850.0,0.20027785]
[1762239462831,0.03127272,104880.0,104860.0,0.001]
[1762239463043,0.01627,104870.0,104860.0,0.001]
[1762239463249,0.03759,104870.0,104850.0,0.19074677]
[1762239463463,0.04159,104870.0,104840.0,0.54030368]
[1762239463671,0.04159,104870.0,104850.0,0.35704]
[1762239463871,0.03759,104870.0,104850.0,0.19174867]
[1762239464172,0.03759,104870.0,104860.0,0.004]
[1762239464732,0.96026923,104890.0,104850.0,0.1927468]
[1762239464931,0.96026923,104890.0,104860.0,0.01587]
[1762239464932,3.09070511,104870.0,104860.0,0.01587]
[1762239465137,3.14597477,104870.0,104860.0,0.01587]
[1762239465762,0.34,104860.0,104850.0,0.00309272]
[1762239465962,3.36463,104860.0,104850.0,0.00309272]
[1762239466176,3.36463,104860.0,104850.0,0.04216272]
[1762239466339,3.36463,104860.0,104850.0,0.03916272]
[1762239466340,3.34,104860.0,104850.0,0.03916272]
[1762239467150,0.34,104860.0,104850.0,0.04016272]
[1762239467353,0.34,104860.0,104850.0,0.07064272]
[1762239467562,0.34,104860.0,104850.0,0.07264272]
[1762239468000,0.34,104860.0,104850.0,0.04216272]
[1762239470804,0.55536049,104860.0,104850.0,0.00309272]
[1762239471049,4.33284181,104860.0,104850.0,0.00309272]
[1762239472147,4.33284181,104860.0,104850.0,0.00209272]
[1762239472388,4.33384181,104860.0,104850.0,0.00209272]
[1762239472557,4.33384181,104860.0,104850.0,9.272e-05]
[1762239474017,4.34881305,104860.0,104850.0,9.272e-05]
[1762239474220,4.33384181,104860.0,104850.0,9.272e-05]
[1762239475422,4.42841787,104860.0,104850.0,9.272e-05]
[1762239475980,4.33384181,104860.0,104850.0,9.272e-05]
[1762239477322,4.34881358,104860.0,104850.0,9.272e-05]
[1762239478592,4.3637764,104860.0,104850.0,9.272e-05]
[1762239483369,0.19080328,104820.0,104810.0,0.01587]
[1762239483520,0.09070511,104820.0,104810.0,0.06955]
[1762239483724,0.28150839,104820.0,104810.0,0.03907]
[1762239484323,0.62150839,104820.0,104810.0,0.03907]
[1762239485386,0.62150839,104820.0,104810.0,0.04007]
[1762239486572,0.62150839,104820.0,104810.0,0.07055]
[1762239486781,0.62150839,104820.0,104810.0,0.07255]
[1762239486992,0.62150839,104820.0,104810.0,0.04207]
[1762239487168,1.36821971,104820.0,104810.0,0.04207]
[1762239488378,0.62150839,104820.0,104810.0,0.04207]
[1762239488587,0.64613839,104820.0,104810.0,0.01887]
[1762239488813,0.67690839,104820.0,104810.0,0.01887]
[1762239489014,0.64613839,104820.0,104810.0,0.01887]
[1762239490582,0.64613839,104820.0,104810.0,0.01891]
[1762239491219,0.64613839,104820.0,104810.0,0.01895]
[1762239491370,0.34,104820.0,104810.0,0.07267]
[1762239491602,0.53080328,104820.0,104810.0,0.07271]
[1762239491817,0.53080328,104820.0,104810.0,0.07275]
[1762239492032,0.53080328,104820.0,104810.0,0.07279]
[1762239492260,0.34,104820.0,104810.0,0.07279]
[1762239492484,0.53080328,104820.0,104810.0,0.07279]
[1762239493127,0.52407811,104820.0,104810.0,0.07279]
[1762239494037,0.61478322,104820.0,104810.0,0.07279]
[1762239494493,0.61478322,104820.0,104810.0,0.04231]
[1762239495075,0.93627668,104830.0,104810.0,0.07952]
[1762239495076,0.0299414,104830.0,104810.0,0.07952]
[1762239495286,0.03210709,104890.0,104850.0,0.34953743]
[1762239495492,0.03210709,104890.0,104850.0,0.64097865]
[1762239495493,0.01348603,104890.0,104850.0,0.64097865]
[1762239495741,0.01348603,104890.0,104860.0,0.01907304]
[1762239495944,3.04283,104870.0,104850.0,0.34]
[1762239496199,0.04283,104870.0,104850.0,0.34]
[1762239496589,0.04283,104870.0,104850.0,0.342]
[1762239496774,0.04283,104870.0,104830.0,0.32718162]
[1762239496985,0.04283,104870.0,104840.0,0.34]
[1762239497161,0.04283,104870.0,104840.0,0.53076683]
[1762239497525,0.23354344,104870.0,104840.0,0.34]
[1762239497727,0.26930242,104870.0,104840.0,0.53076676]
[1762239498073,0.07859,104870.0,104840.0,0.53076676]
[1762239498298,0.07859,104870.0,104820.0,0.38618227]
[1762239498299,0.20028758,104850.0,104820.0,0.38618227]
[1762239498452,0.01876,104850.0,104820.0,0.53080247]
[1762239498654,0.01876,104850.0,104830.0,0.19078483]
[1762239499128,0.01876,104850.0,104840.0,0.004]
[1762239499457,0.01889889,104850.0,104830.0,0.19078483]
[1762239499656,0.00013889,104850.0,104830.0,0.19078483]
[1762239499905,0.00013889,104850.0,104830.0,0.19578483]
[1762239500165,0.00013889,104850.0,104830.0,0.19378483]
[1762239501453,0.00013889,104850.0,104840.0,0.002]
[1762239501650,0.00013889,104850.0,104830.0,0.19378483]
[1762239502055,0.00013889,104850.0,104830.0,0.19578483]
[1762239502222,0.00013889,104850.0,104830.0,0.19078483]
[1762239502417,0.00013889,104850.0,104840.0,0.003]
[1762239502689,0.00013889,104850.0,104840.0,0.005]
[1762239502894,0.00013889,104850.0,104840.0,0.003]
[1762239503136,0.00013889,104850.0,104830.0,0.19078483]
[1762239503341,0.00013889,104850.0,104830.0,0.19278483]
[1762239503540,0.00013889,104850.0,104830.0,0.19578483]
[1762239504455,0.00013889,104850.0,104830.0,0.19378483]
[1762239504685,0.00013889,104850.0,104840.0,0.002]
[1762239505167,0.00013889,104850.0,104830.0,0.19378483]
[1762239505361,0.00013889,104850.0,104830.0,0.19578483]
[1762239505496,0.00013889,104850.0,104830.0,0.19078483]
[1762239505695,0.00013889,104850.0,104840.0,0.003]
[1762239505875,0.00013889,104850.0,104840.0,0.005]
[1762239506080,3.0,104860.0,104840.0,0.01401]
[1762239506300,3.0,104860.0,104850.0,0.01101]
[1762239508071,3.0,104860.0,104850.0,0.01201]
[1762239508270,3.0,104860.0,104850.0,0.01301]
[1762239508455,0.19073049,104860.0,104850.0,0.01301]
[1762239508666,0.3055056,104860.0,104850.0,0.002]
[1762239508815,1.01035006,104860.0,104850.0,0.002]
[1762239509050,4.01035006,104860.0,104850.0,0.002]
[1762239509626,3.97459006,104860.0,104850.0,0.002]
[1762239509868,4.00987006,104860.0,104850.0,0.002]
[1762239510483,4.00987006,104860.0,104850.0,0.001]
[1762239510646,4.01087006,104860.0,104850.0,0.001]
[1762239510847,0.19074963,104850.0,104830.0,0.01101]
[1762239511068,0.19074963,104850.0,104830.0,0.01114889]
[1762239511250,0.19074963,104850.0,104840.0,0.01244]
[1762239511567,0.20922963,104850.0,104830.0,0.00013889]
[1762239511777,0.20922963,104850.0,104830.0,0.01257889]
[1762239511932,0.20922963,104850.0,104840.0,0.01244]
[1762239512355,0.19074963,104850.0,104840.0,0.01344]
[1762239513016,0.19074963,104850.0,104840.0,0.0094]
[1762239513425,0.19074963,104850.0,104840.0,0.0178]
[1762239513608,0.19074963,104850.0,104840.0,0.0168]
[1762239513974,0.19074963,104850.0,104840.0,0.0084]
[1762239514364,0.19074963,104850.0,104840.0,0.0094]
[1762239514568,3.97935728,104850.0,104840.0,0.001]
[1762239514789,3.97935728,104850.0,104840.0,0.002]
[1762239514989,3.93738409,104850.0,104840.0,0.002]
[1762239515802,3.92474669,104850.0,104840.0,0.002]
[1762239515999,4.46474669,104850.0,104840.0,0.002]
[1762239517102,4.50092897,104850.0,104840.0,0.001]
[1762239517509,4.50292897,104850.0,104840.0,0.001]
[1762239517792,4.59750503,104850.0,104840.0,0.001]
[1762239517981,4.59750503,104850.0,104830.0,0.00013889]
[1762239517982,3.53076688,104840.0,104830.0,0.00013889]
[1762239518188,4.34962645,104840.0,104830.0,0.00013889]
[1762239518562,4.39079862,104840.0,104830.0,0.00013889]
[1762239519186,4.39179862,104840.0,104830.0,0.00013889]
[1762239519392,4.48637468,104840.0,104830.0,0.00013889]
[1762239519813,4.2946078,104840.0,104830.0,0.00013889]
[1762239519979,4.48537468,104840.0,104830.0,0.00013889]
[1762239520619,4.50034226,104840.0,104830.0,0.00013889]
[1762239520795,4.50234226,104840.0,104830.0,0.00013889]
[1762239521003,4.50434226,104840.0,104830.0,0.00013889]
[1762239522132,4.48937468,104840.0,104830.0,0.00013889]
[1762239523714,4.50435047,104840.0,104830.0,0.00013889]
[1762239523966,4.48937468,104840.0,104830.0,0.00013889]
[1762239525114,4.50434226,104840.0,104830.0,0.00013889]
[1762239525361,4.50434226,104840.0,104830.0,0.20782397]
[1762239525362,0.004,104840.0,104830.0,0.20782397]
[1762239525560,2.10681874,104880.0,104840.0,0.34999999]
[1762239525772,2.10681874,104880.0,104870.0,0.0089]
[1762239525773,2.10681788,104880.0,104870.0,0.0089]
[1762239526191,2.86851064,104880.0,104870.0,0.00445]
[1762239526390,2.83430234,104880.0,104870.0,0.00445]
[1762239527006,2.84927192,104880.0,104870.0,0.00445]
[1762239527473,2.85027192,104880.0,104870.0,0.00345]
[1762239527642,0.19071239,104870.0,104850.0,0.00445]
[1762239527855,0.2814175,104870.0,104850.0,0.00445]
[1762239528372,0.2814175,104870.0,104860.0,0.00345]
[1762239530234,0.2814175,104870.0,104860.0,0.00445]
[1762239530458,0.2814175,104870.0,104860.0,0.00545]
[1762239530666,0.2992075,104870.0,104860.0,0.00545]
[1762239534860,3.0,104870.0,104860.0,0.00545]
[1762239536651,0.19071231,104870.0,104860.0,0.00545]
[1762239536902,0.32332742,104870.0,104860.0,0.002]
[1762239537096,0.41790348,104870.0,104860.0,0.002]
[1762239537299,0.32332742,104870.0,104860.0,0.002]
[1762239538791,4.02669188,104870.0,104860.0,0.002]
[1762239541262,0.20022882,104880.0,104860.0,0.0089]
[1762239541263,3.0,104880.0,104860.0,0.0089]
[1762239541465,3.0,104880.0,104870.0,0.00345]
[1762239541676,3.0,104880.0,104870.0,0.0069]
[1762239542412,3.0,104890.0,104870.0,0.0069]
[1762239542701,0.00014572,104890.0,104880.0,0.0059]
[1762239542857,0.00014572,104890.0,104880.0,0.0049]
[1762239542858,0.01433242,104890.0,104880.0,0.0049]
[1762239543060,0.01433242,104890.0,104880.0,0.63629922]
[1762239543061,0.00014572,104890.0,104880.0,0.63629922]
[1762239543289,0.01536833,104910.0,104900.0,0.34]
[1762239543494,0.01536833,104910.0,104900.0,0.62396287]
[1762239543696,0.01536833,104910.0,104900.0,0.46948739]
[1762239544020,0.0004,104910.0,104900.0,0.0026]
[1762239544373,0.19103959,104910.0,104900.0,0.0026]
[1762239544779,0.0004,104910.0,104900.0,0.0026]
[1762239545199,0.19103959,104910.0,104900.0,0.0026]
[1762239545630,0.19103959,104910.0,104900.0,0.0033]
[1762239545835,3.20882959,104910.0,104900.0,0.0033]
[1762239545994,3.90203405,104910.0,104900.0,0.002]
[1762239546174,3.90203405,104910.0,104900.0,0.005]
[1762239546574,3.90203405,104910.0,104900.0,0.002]
[1762239547029,3.93631405,104910.0,104900.0,0.003]
[1762239547751,3.93631405,104910.0,104900.0,0.001]
[1762239548099,3.93631405,104910.0,104900.0,0.002]
[1762239548891,3.90203405,104910.0,104900.0,0.002]
[1762239550344,3.76415616,104910.0,104900.0,0.002]
[1762239550744,3.77911113,104910.0,104900.0,0.002]
[1762239551272,3.87368719,104910.0,104900.0,0.002]
[1762239551502,4.21368719,104910.0,104900.0,0.002]
[1762239552284,4.21368719,104910.0,104900.0,0.001]
[1762239552801,0.19069412,104880.0,104870.0,0.0013]
[1762239552930,0.19069412,104880.0,104870.0,0.00144572]
[1762239553145,0.35535497,104910.0,104880.0,0.0095347]
[1762239553380,0.0004,104930.0,104920.0,0.54062141]
[1762239553580,0.0504,104970.0,104950.0,0.34]
[1762239553768,0.0504,104970.0,104950.0,0.03618228]
[1762239553769,0.54732657,104970.0,104950.0,0.03618228]
[1762239553969,3.0,104950.0,104940.0,0.03618228]
[1762239554186,3.25877056,104950.0,104940.0,0.03618228]
[1762239554381,3.0,104940.0,104930.0,0.03618228]
[1762239554589,0.00048592,104940.0,104930.0,0.03618228]
[1762239554784,0.00048592,104940.0,104930.0,0.22678553]
[1762239555594,0.00048592,104940.0,104930.0,0.03618228]
[1762239555807,0.00048592,104940.0,104930.0,0.23178553]
[1762239556010,0.00048592,104940.0,104930.0,0.19860325]
[1762239556831,0.00048592,104940.0,104930.0,0.008]
[1762239557031,0.00048592,104940.0,104930.0,0.19860325]
[1762239558038,0.00048592,104940.0,104930.0,0.008]
[1762239558838,0.00048592,104940.0,104930.0,0.003]
[1762239559263,0.71130278,104940.0,104930.0,0.003]
[1762239559486,0.52071769,104940.0,104930.0,0.003]
[1762239559645,0.52071769,104940.0,104930.0,0.005]
[1762239560462,0.21437621,104940.0,104930.0,0.005]
[1762239560905,0.52071769,104940.0,104930.0,0.005]
[1762239561123,0.71130278,104940.0,104930.0,0.005]
[1762239561337,3.71130278,104940.0,104930.0,0.005]
[1762239561541,3.52071769,104940.0,104930.0,0.005]
[1762239561696,3.71130278,104940.0,104930.0,0.005]
[1762239562082,3.52071769,104940.0,104930.0,0.005]
[1762239562372,3.71130278,104940.0,104930.0,0.005]
[1762239563184,3.74718278,104940.0,104930.0,0.005]
[1762239563974,3.74718278,104940.0,104930.0,0.003]
[1762239564176,3.74718278,104940.0,104900.0,0.66707581]
[1762239564396,0.10941511,104930.0,104910.0,0.19063519]
[1762239564606,0.10941511,104930.0,104900.0,0.66707581]
[1762239565014,0.30001846,104930.0,104900.0,0.66707581]
[1762239565349,0.30001846,104930.0,104900.0,0.47842027]
[1762239565546,0.30001846,104930.0,104900.0,0.46788739]
[1762239565742,0.30001846,104930.0,104900.0,0.46688739]
[1762239566255,0.30001846,104930.0,104900.0,0.47188739]
[1762239567230,0.10941511,104930.0,104900.0,0.66254374]
[1762239567436,0.10941511,104930.0,104900.0,0.67207662]
[1762239567841,0.30002068,104930.0,104900.0,0.47188739]
[1762239568014,0.10941511,104930.0,104900.0,0.66254338]
[1762239568508,0.30002066,104930.0,104900.0,0.47188739]
[1762239568999,0.01544443,104940.0,104920.0,0.19062142]
[1762239569232,0.1910725,104940.0,104910.0,0.34]
[1762239569452,0.1910725,104940.0,104910.0,0.53063958]
[1762239569672,0.00023762,104930.0,104910.0,0.53063958]
[1762239570712,0.00023762,104930.0,104920.0,0.002]
[1762239570927,0.00023762,104930.0,104920.0,0.001]
[1762239571197,0.00014762,104930.0,104920.0,0.28232653]
[1762239571321,0.00048592,104940.0,104930.0,0.57678552]
[1762239571522,0.00048592,104940.0,104930.0,0.64912676]
[1762239572175,0.00048592,104940.0,104930.0,0.66399139]
[1762239572376,0.00048592,104940.0,104930.0,0.68599138]
[1762239572525,0.00148592,104940.0,104930.0,0.61365014]
[1762239573691,0.00248592,104940.0,104930.0,0.61965014]
[1762239576127,0.00248592,104940.0,104930.0,0.68936768]
[1762239578431,0.0004,104960.0,104950.0,0.00999999]
[1762239578660,0.00054568,104960.0,104950.0,0.25580589]
[1762239578838,0.00054568,104960.0,104950.0,0.2367492]
[1762239579243,0.00054568,104960.0,104950.0,0.32745431]
[1762239580030,0.00054568,104960.0,104950.0,0.33145431]
[1762239580237,0.00054568,104960.0,104950.0,0.33845431]
[1762239581574,0.00054568,104960.0,104950.0,0.32845432]
[1762239581885,0.00054568,104960.0,104950.0,0.33845431]
[1762239582737,0.00054568,104960.0,104950.0,0.32845432]
[1762239582946,0.00054568,104960.0,104950.0,0.33845431]
[1762239583079,0.00125832,104960.0,104950.0,0.33845431]
[1762239585257,0.62737472,104990.0,104960.0,0.56673106]
[1762239585619,3.0,104980.0,104960.0,0.37618228]
[1762239585771,0.00890595,104980.0,104960.0,0.37618228]
[1762239585972,0.00890595,104980.0,104960.0,0.56673062]
[1762239586195,0.00890595,104980.0,104960.0,0.37618228]
[1762239586388,0.00890595,104980.0,104960.0,0.37718228]
[1762239586594,0.00890595,104980.0,104960.0,0.37818228]
[1762239586757,0.00890595,104980.0,104960.0,0.37718228]
[1762239586962,0.00890595,104980.0,104960.0,0.37618228]
[1762239587197,0.00890595,104980.0,104960.0,0.38118228]
[1762239588263,0.00890595,104980.0,104960.0,0.57172973]
[1762239588511,0.00890595,104980.0,104970.0,0.01905306]
[1762239588752,0.00890595,104980.0,104960.0,0.57172973]
[1762239589295,0.00890595,104980.0,104960.0,0.56872973]
[1762239589768,0.00890595,104980.0,104970.0,0.003]
[1762239590110,0.00890595,104980.0,104960.0,0.56872973]
[1762239590312,0.00890595,104980.0,104960.0,0.56873086]
[1762239590512,0.00890595,104980.0,104960.0,0.56973086]
[1762239590985,0.00890595,104980.0,104970.0,0.002]
[1762239591191,0.00890595,104980.0,104960.0,0.37918228]
[1762239591401,0.00890595,104980.0,104960.0,0.56973001]
[1762239591605,0.00890595,104980.0,104960.0,0.57173001]
[1762239592127,0.00890595,104980.0,104960.0,0.37818228]
[1762239592331,0.00890595,104980.0,104970.0,0.003]
[1762239592756,0.00890595,104980.0,104970.0,0.00304]
[1762239592958,0.00890595,104980.0,104970.0,0.00204]
[1762239593359,0.00890595,104980.0,104970.0,0.00208]
[1762239593876,0.00890595,104980.0,104970.0,0.00216]
[1762239594044,0.00890595,104980.0,104970.0,0.0052]
[1762239595995,0.65294763,104980.0,104970.0,0.0052]
[1762239596482,0.81011503,104980.0,104970.0,0.0052]